fUSD/lending_fUSD_20241213
["ID","MTS","AMOUNT","RATE_DAILY","PERIOD"]
[345278897,1734132649532,-3762.2129015,0.0002125,2]
[345278902,1734132649569,-740.36,0.0002125,2]
[345278904,1734132649580,-570.916685,0.0002125,2]
[345278906,1734132649591,-657.41777,0.0002125,2]
[345278908,1734132649603,-360.26241,0.0002125,2]
[345278922,1734132649726,-500.0,0.00019174,2]
[345278924,1734132649736,-153.0,0.00020112,2]
[345278926,1734132649745,-18768.93692759,0.0002125,2]
[345278929,1734132649763,-25060.77172763,0.0002125,2]
[345278931,1734132649775,-402.52309571,0.0002125,2]
[345278934,1734132649796,-103.45281041,0.0002125,2]
[345278936,1734132649808,-24094.52656092,0.0002125,2]
[345278937,1734132649819,-478.38836864,0.0002125,2]
[345279084,1734132651639,-132.8539904,0.0002125,2]
[345279086,1734132651650,-2427.77057,0.0002125,2]
[345279127,1734132652023,-22.00866984,0.0002125,2]
[345279129,1734132652034,-59683.38149,0.0002125,2]
[345279132,1734132652045,-3084.69547425,0.0002125,2]
[345279595,1734132663547,2001.2242,0.00017978,120]
[345279597,1734133300223,151.75,0.00010137,2]
[345279599,1734133546121,-4010.66700889,0.0001741,2]
[345279600,1734133546143,-1003.48,0.0001741,2]
[345279601,1734133546164,-1001.11,0.0001741,2]
[345279602,1734133546184,-500.0,0.00017414,2]
[345279603,1734133546204,-500.0,0.00017414,2]
[345279604,1734133546224,-281.98,0.00018104,2]
[345279605,1734133546244,-500.0,0.00018352,2]
[345279606,1734133546267,-500.0,0.0001851,2]
[345279607,1734133546288,-150.0,0.00018603,2]
[345279608,1734133546310,-300.0,0.00018624,2]
[345279609,1734133546331,-255.0,0.00018624,2]
[345279610,1734133546352,-500.0,0.00018625,2]
[345279611,1734133546374,-629.77,0.00018625,2]
[345279612,1734133546395,-366.72815687,0.00018625,2]
[345279613,1734133546417,-500.0,0.00018625,2]
[345279614,1734133546438,-150.22258593,0.00018625,2]
[345279615,1734133546459,-500.0,0.00018625,2]
[345279616,1734133546480,-500.0,0.00018625,2]
[345279617,1734133546500,-500.0,0.00018625,2]
[345279618,1734133546523,-441.71392888,0.00018625,2]
[345279619,1734133630088,-157.0,0.00017409,2]
[345279620,1734133630110,-1003.22,0.0001741,2]
[345279621,1734133630132,-920.00313975,0.0001741,2]
[345279622,1734133746108,-267.88,0.0001731,2]
[345279623,1734133746131,-1014.86,0.0001741,2]
[345279624,1734133746152,-998.18,0.0001741,2]
[345279625,1734133746176,-990.06,0.0001741,2]
[345279626,1734133746197,-1013.98,0.0001741,2]
[345279627,1734133746218,-1018.38,0.0001741,2]
[345279628,1734133746239,-93.42686025,0.0001741,2]
[345279629,1734133746260,-1019.35,0.0001741,2]
[345279630,1734133746281,-1015.74,0.0001741,2]
[345279631,1734133746301,-500.0,0.00017414,2]
[345279632,1734133746321,-500.0,0.00017414,2]
[345279633,1734133746342,-500.0,0.0001851,2]
[345279634,1734133746363,-58.28607112,0.00018625,2]
[345279635,1734133746383,-249.85175651,0.00018625,2]
[345279636,1734133746404,-565.41,0.00018625,2]
[345279637,1734133746426,-500.0,0.00018625,2]
[345279638,1734133746447,-500.0,0.00018625,7]
[345279639,1734133746468,-500.0,0.00018625,2]
[345279640,1734133746488,-500.0,0.00018625,2]
[345279641,1734133746509,-500.0,0.00018625,2]
[345279642,1734133746529,-500.0,0.00018625,2]
[345279643,1734133746550,-500.0,0.00018625,2]
[345279644,1734133746570,-500.0,0.00018625,2]
[345279645,1734133746591,-500.0,0.00018625,2]
[345279646,1734133746613,-500.0,0.00018625,2]
[345279647,1734133746635,-500.0,0.00018625,2]
[345279648,1734133746657,-500.0,0.00018625,2]
[345279649,1734133746684,-500.0,0.00018625,2]
[345279650,1734133746705,-570.09,0.00018625,2]
[345279651,1734133746726,-500.85,0.00018625,2]
[345279652,1734133746746,-500.0,0.00018625,2]
[345279653,1734133746768,-152.20876369,0.00018625,2]
[345279654,1734133746790,-500.0,0.00018899,2]
[345279655,1734133746813,-500.0,0.00018899,2]
[345279656,1734133746834,-645.02,0.00018899,2]
[345279657,1734133746856,-622.35,0.00018899,2]
[345279658,1734133746877,-269.87,0.00018899,7]
[345279659,1734133746899,-500.0,0.00018899,2]
[345279660,1734133746922,-500.0,0.00018899,2]
[345279661,1734133746944,-500.0,0.00018899,2]
[345279662,1734133746965,-500.0,0.00018899,2]
[345279663,1734133746987,-500.0,0.00018899,2]
[345279664,1734133747008,-500.0,0.00018899,2]
[345279665,1734133747030,-500.0,0.00018899,2]
[345279666,1734133747050,-500.0,0.00018899,2]
[345279667,1734133747070,-500.0,0.00018899,2]
[345279668,1734133747091,-500.0,0.00018899,2]
[345279669,1734133747111,-500.0,0.00018899,2]
[345279670,1734133828491,500.0,0.00017414,2]
[345279674,1734133831957,-305.33042154,0.00019134,2]
[345279675,1734133831969,-522.80002,0.00019134,2]
[345279676,1734133831982,-171.86955846,0.00019134,2]
[345279677,1734133831991,-207.13,0.00019149,2]
[345279678,1734133832001,-545.77713244,0.00019173,2]
[345279679,1734133832010,-193.0733091,0.00019173,2]
[345279680,1734133832021,-430.2866909,0.00019173,2]
[345279681,1734133832030,-351.0433066,0.00019173,2]
[345279682,1734133832042,-148.9566934,0.00019173,2]
[345279683,1734133832051,-470.754597,0.00019173,2]
[345279684,1734133832063,-29.245403,0.00019173,2]
[345279685,1734133832074,-500.0,0.00019173,2]
[345279686,1734133832083,-392.998262,0.00019173,2]
[345279687,1734133832095,-107.001738,0.00019173,2]
[345279688,1734133832104,-500.0,0.00019173,2]
[345279689,1734133832114,-500.0,0.00019173,2]
[345279690,1734133832123,-151.41,0.00019173,2]
[345279691,1734133832132,-200.505908,0.00019173,2]
[345279692,1734133832149,-299.494092,0.00019173,2]
[345279693,1734133832159,-500.0,0.00019173,2]
[345279694,1734133832168,-548.39,0.00019173,2]
[345279695,1734133832179,-150.0,0.00019186,2]
[345279696,1734133832187,-250.0,0.00019194,2]
[345279697,1734133832197,-200.0,0.00019196,2]
[345279698,1734133832206,-250.0,0.00019206,2]
[345279699,1734133832215,-241.57750457,0.00019247,2]
[345279700,1734133832226,-65.48249543,0.00019247,2]
[345279701,1734133832236,-311.24,0.00019267,2]
[345279702,1734133832246,-500.0,0.000194,2]
[345279703,1734133832255,-500.0,0.00019447,2]
[345279704,1734133832265,-500.0,0.00019447,2]
[345279705,1734133832274,-178.44,0.00019447,2]
[345279706,1734133832284,-276.16305839,0.00019447,2]
[345279707,1734133832300,-223.83694161,0.00019447,2]
[345279708,1734133832310,-236.90305839,0.00019447,2]
[345279709,1734133832321,-263.09694161,0.00019447,2]
[345279710,1734133832331,-500.0,0.00019447,2]
[345279711,1734133832341,-500.0,0.00019447,2]
[345279712,1734133832351,-500.0,0.00019447,2]
[345279713,1734133832361,-174.54039302,0.0001945,2]
[345279715,1734133832372,-325.45960698,0.0001945,2]
[345279717,1734133832381,-157.51,0.00019531,30]
[345279719,1734133832390,-267.88,0.00019574,2]
[345279721,1734133832399,-1086.17708064,0.00019606,2]
[345279724,1734133832410,-1097.66867969,0.00019606,2]
[345279726,1734133832421,-9501.45723967,0.00019606,2]
[345279728,1734133832430,-168.31454184,0.00019606,2]
[345279730,1734133832441,-331.68545816,0.00019606,2]
[345279732,1734133832450,-500.0,0.00019721,2]
[345279734,1734133832459,-500.0,0.00019721,2]
[345279736,1734133832468,-429.93627179,0.00019721,2]
[345279738,1734133832480,-70.06372821,0.00019721,2]
[345279740,1734133832489,-500.0,0.00019721,2]
[345279742,1734133832499,-500.0,0.00019721,2]
[345279744,1734133832508,-500.0,0.00019721,2]
[345279746,1734133832519,-500.0,0.00019721,2]
[345279748,1734133832529,-939.39,0.000198,2]
[345279750,1734133832538,-151.75,0.00019895,2]
[345279752,1734133832547,-693.64,0.00019941,2]
[345279754,1734133832557,-693.64,0.00019946,2]
[345279756,1734133832565,-693.64,0.00019951,2]
[345279758,1734133832574,-693.64,0.00019956,2]
[345279760,1734133832584,-693.64,0.00019962,2]
[345279762,1734133832593,-693.64,0.00019967,2]
[345279764,1734133832601,-693.64,0.00019972,2]
[345279766,1734133832610,-693.64,0.00019978,2]
[345279768,1734133832619,-693.64,0.00019983,2]
[345279770,1734133832628,-693.64,0.00019988,2]
[345279771,1734133832637,-693.64,0.00019993,2]
[345279772,1734133832647,-500.0,0.00019995,2]
[345279773,1734133832656,-500.0,0.00019995,2]
[345279774,1734133832665,-500.0,0.00019995,2]
[345279775,1734133832674,-173.58,0.00019995,2]
[345279776,1734133832683,-500.0,0.00019995,2]
[345279777,1734133832692,-500.0,0.00019995,2]
[345279778,1734133832701,-500.0,0.00019995,2]
[345279779,1734133832711,-693.64,0.00019999,2]
[345279780,1734133832723,-3000.0,0.0002,2]
[345279781,1734133832732,-7938.36757739,0.0002,7]
[345280241,1734133837938,-1354.9999998,0.0002,7]
[345280242,1734133837949,-1275.63470079,0.0002,7]
[345280243,1734133837960,-1262.42531944,0.0002,7]
[345280244,1734133837969,-581.07468056,0.00020004,2]
[345280245,1734133837983,-112.56531944,0.00020004,2]
[345280246,1734133837993,-693.64,0.00020009,2]
[345280247,1734133838002,-13.79469156,0.00020014,2]
[345280248,1734133838015,-594.99998642,0.00020014,2]
[345280249,1734133838028,-84.84532202,0.00020014,2]
[345280250,1734133838039,-693.64,0.0002002,2]
[345280251,1734133838049,-74.03138974,0.00020025,2]
[345280252,1734133838060,-619.60861026,0.00020025,2]
[345280253,1734133838070,-693.64,0.0002003,2]
[345280254,1734133838079,-693.64,0.00020035,2]
[345280255,1734133838088,-693.64,0.00020041,2]
[345280256,1734133838097,-264.6174,0.00020071,2]
[345280257,1734133838107,-153.0,0.00020127,2]
[345280258,1734133838117,-153.0,0.00020127,2]
[345280259,1734133838128,-153.0,0.00020127,2]
[345280260,1734133838136,-153.0,0.00020127,2]
[345280261,1734133838147,-153.0,0.00020127,2]
[345280262,1734133838157,-153.0,0.00020127,2]
[345280263,1734133838166,-153.0,0.00020127,2]
[345280264,1734133838175,-153.0,0.00020127,2]
[345280265,1734133838185,-153.0,0.00020127,2]
[345280266,1734133838194,-153.0,0.00020127,2]
[345280267,1734133838203,-153.0,0.00020127,2]
[345280268,1734133838213,-153.0,0.00020127,2]
[345280270,1734133838222,-153.0,0.00020127,2]
[345280272,1734133838234,-153.0,0.00020127,2]
[345280274,1734133838243,-153.0,0.00020127,2]
[345280276,1734133838253,-153.0,0.00020171,2]
[345280277,1734133838262,-153.0,0.00020171,2]
[345280279,1734133838272,-153.0,0.00020171,2]
[345280281,1734133838281,-153.0,0.00020171,2]
[345280283,1734133838290,-153.0,0.00020171,2]
[345280285,1734133838300,-153.0,0.00020171,2]
[345280287,1734133838309,-153.0,0.00020171,2]
[345280289,1734133838318,-153.0,0.00020171,2]
[345280291,1734133838327,-432.045,0.0002019,2]
[345280293,1734133838336,-500.0,0.00020269,2]
[345280295,1734133838346,-500.0,0.00020269,2]
[345280297,1734133838355,-647.10556666,0.00020269,2]
[345280299,1734133838364,-500.0,0.00020269,2]
[345280301,1734133838374,-500.0,0.00020269,2]
[345280303,1734133838383,-500.0,0.00020269,2]
[345280305,1734133838393,-1262.0,0.00020447,2]
[345280307,1734133838402,-567.0,0.00020447,2]
[345280309,1734133838411,-631.0,0.00020447,2]
[345280311,1734133838420,-2006.0,0.00020447,2]
[345280313,1734133838429,-563.0,0.00020447,2]
[345280315,1734133838439,-906.211,0.00020447,2]
[345280317,1734133838448,-3762.0,0.00020447,2]
[345280319,1734133838457,-1253.0,0.00020447,2]
[345280321,1734133838466,-535.0,0.00020447,2]
[345280322,1734133838475,-295.889,0.00020447,2]
[345280323,1734133838486,-976.0,0.00020447,2]
[345280324,1734133838495,-3879.0,0.00020447,2]
[345280325,1734133838504,-1167.0,0.00020447,2]
[345280326,1734133838513,-155.76,0.00020447,2]
[345280327,1734133838522,-663.111,0.00020447,2]
[345280328,1734133838531,-500.0,0.00020543,2]
[345280329,1734133838540,-500.0,0.00020543,2]
[345280330,1734133838549,-500.0,0.00020543,2]
[345280331,1734133838560,-500.0,0.00020543,2]
[345280333,1734133838570,-500.0,0.00020543,2]
[345280335,1734133838579,-5015.0,0.00020548,7]
[345280337,1734133838588,-500.0,0.00020817,2]
[345280339,1734133838598,-242.84,0.00020817,2]
[345280341,1734133838607,-500.0,0.00020817,2]
[345280343,1734133838617,-500.0,0.00020817,2]
[345280345,1734133838626,-500.0,0.00020817,2]
[345280347,1734133838635,-675.16431138,0.00020887,2]
[345280349,1734133838645,-675.16431138,0.00020887,2]
[345280351,1734133838654,-675.16431138,0.00020893,2]
[345280353,1734133838663,-675.16431138,0.0002091,2]
[345280355,1734133838672,-675.16431138,0.00020923,2]
[345280357,1734133838682,-1673.637,0.00020945,2]
[345280359,1734133838691,-222.475,0.00020945,2]
[345280361,1734133838700,-675.16431138,0.00020946,2]
[345280363,1734133838709,-150.0,0.00020977,2]
[345280365,1734133838722,-150.0,0.00021014,2]
[345280367,1734133838732,-185.0,0.00021039,2]
[345280369,1734133838742,-2580.49084,0.0002104,2]
[345280371,1734133838751,-1500.0,0.00021042,2]
[345280373,1734133838762,-500.0,0.0002108,2]
[345280375,1734133838771,-1500.0,0.00021087,2]
[345280377,1734133838780,-500.0,0.00021091,2]
[345280379,1734133838790,-500.0,0.00021091,2]
[345280381,1734133838801,-500.0,0.00021091,2]
[345280383,1734133838810,-500.0,0.00021091,2]
[345280385,1734133838819,-1761.0116,0.000211,2]
[345280387,1734133838828,-500.0,0.0002115,2]
[345280389,1734133838837,-166.39663466,0.0002115,2]
[345280391,1734133838847,-179.80760629,0.0002115,2]
[345280393,1734133838855,-846.23600062,0.0002115,2]
[345280395,1734133838865,-173.2882403,0.0002115,2]
[345280397,1734133838873,-16107.8522,0.0002115,2]
[345280399,1734133838883,-1500.0,0.00021151,2]
[345280401,1734133838891,-150.0,0.00021161,2]
[345280403,1734133838900,-321.68524715,0.00021178,2]
[345280405,1734133838909,-500.0,0.00021178,2]
[345280407,1734133838919,-500.0,0.00021178,2]
[345280409,1734133838927,-500.0,0.00021178,2]
[345280411,1734133838936,-500.0,0.00021178,2]
[345280413,1734133838945,-500.0,0.00021178,2]
[345280415,1734133838954,-497.69812689,0.00021178,2]
[345280417,1734133838962,-500.0,0.00021178,2]
[345280419,1734133838971,-500.0,0.00021178,2]
[345280420,1734133838980,-500.0,0.00021178,2]
[345280422,1734133838989,-500.0,0.00021178,2]
[345280424,1734133838998,-500.0,0.00021178,2]
[345280426,1734133839007,-14954.0,0.00021178,2]
[345280428,1734133839016,-313.0,0.00021178,2]
[345280430,1734133839025,-956.0,0.00021178,2]
[345280432,1734133839035,-500.0,0.00021179,2]
[345280434,1734133839044,-389.8,0.00021179,2]
[345280436,1734133839053,-500.0,0.00021179,2]
[345280438,1734133839061,-500.0,0.00021179,2]
[345280440,1734133839071,-500.0,0.00021179,2]
[345280442,1734133839080,-500.0,0.00021179,2]
[345280444,1734133839089,-500.0,0.00021179,2]
[345280446,1734133839098,-500.0,0.00021179,2]
[345280448,1734133839107,-777.86,0.00021179,2]
[345280450,1734133839116,-508.09,0.00021179,2]
[345280452,1734133839125,-500.0,0.00021179,2]
[345280454,1734133839134,-500.0,0.00021179,2]
[345280456,1734133839143,-500.0,0.00021179,2]
[345280458,1734133839153,-511.66,0.00021179,2]
[345280460,1734133839161,-500.0,0.00021179,2]
[345280462,1734133839170,-500.0,0.00021179,2]
[345280464,1734133839179,-500.0,0.00021179,2]
[345280466,1734133839188,-500.0,0.00021179,2]
[345280468,1734133839197,-500.0,0.00021179,2]
[345280470,1734133839206,-500.0,0.00021179,2]
[345280472,1734133839215,-500.0,0.00021179,2]
[345280474,1734133839224,-500.0,0.00021179,2]
[345280476,1734133839234,-619.98,0.00021179,2]
[345280478,1734133839244,-500.0,0.00021179,2]
[345280480,1734133839253,-186.47115265,0.00021179,2]
[345280482,1734133839262,-500.0,0.00021179,2]
[345280484,1734133839271,-500.0,0.00021179,2]
[345280486,1734133839280,-500.0,0.00021179,2]
[345280488,1734133839289,-500.0,0.00021179,2]
[345280490,1734133839298,-500.0,0.00021179,2]
[345280492,1734133839307,-500.0,0.00021179,2]
[345280494,1734133839317,-700.89,0.00021179,2]
[345280495,1734133839326,-287.38,0.00021179,2]
[345280496,1734133839335,-581.08,0.00021179,2]
[345280497,1734133839344,-500.0,0.00021179,2]
[345280498,1734133839354,-500.0,0.00021179,2]
[345280499,1734133839363,-500.0,0.00021179,2]
[345280500,1734133839373,-500.0,0.00021179,2]
[345280501,1734133839381,-500.0,0.00021179,2]
[345280502,1734133839390,-500.0,0.00021179,2]
[345280503,1734133839564,-500.0,0.00021179,2]
[345280504,1734133839574,-500.0,0.00021179,2]
[345280505,1734133839583,-500.0,0.00021179,2]
[345280506,1734133839592,-500.0,0.00021179,2]
[345280507,1734133839601,-673.09,0.00021179,2]
[345280508,1734133839611,-500.0,0.00021179,2]
[345280509,1734133839620,-500.0,0.00021179,2]
[345280510,1734133839629,-500.0,0.00021179,2]
[345280511,1734133839638,-500.0,0.00021179,2]
[345280512,1734133839648,-500.0,0.00021179,2]
[345280513,1734133839657,-500.0,0.00021179,2]
[345280514,1734133839666,-500.0,0.00021179,2]
[345280515,1734133839675,-500.0,0.00021179,2]
[345280516,1734133839684,-500.0,0.00021179,2]
[345280517,1734133839694,-588.85,0.00021179,2]
[345280518,1734133839703,-500.0,0.00021179,2]
[345280519,1734133839712,-500.0,0.00021179,2]
[345280520,1734133839725,-500.0,0.00021179,2]
[345280521,1734133839736,-511.38,0.00021179,2]
[345280522,1734133839745,-500.0,0.00021179,2]
[345280523,1734133839755,-784.72,0.00021179,2]
[345280524,1734133839765,-500.0,0.00021179,2]
[345280525,1734133839774,-500.0,0.00021179,2]
[345280526,1734133839783,-500.0,0.00021179,2]
[345280527,1734133839794,-500.0,0.00021179,2]
[345280528,1734133839804,-500.0,0.00021179,2]
[345280529,1734133839813,-561.62,0.00021179,2]
[345280530,1734133839822,-1409.76,0.00021179,2]
[345280531,1734133839831,-500.0,0.00021179,2]
[345280532,1734133839840,-500.0,0.00021179,2]
[345280533,1734133839849,-889.29,0.00021179,2]
[345280534,1734133839859,-646.54,0.00021179,2]
[345280535,1734133839868,-500.0,0.00021179,2]
[345280536,1734133839878,-500.0,0.00021179,2]
[345280537,1734133839888,-1035.95,0.00021179,2]
[345280538,1734133839897,-500.0,0.00021179,2]
[345280539,1734133839907,-500.0,0.00021179,2]
[345280540,1734133839917,-694.02,0.00021179,2]
[345280541,1734133839926,-529.44,0.00021179,2]
[345280542,1734133839936,-500.0,0.00021179,2]
[345280543,1734133839946,-500.0,0.00021179,2]
[345280544,1734133839955,-500.0,0.00021179,2]
[345280545,1734133839964,-500.0,0.00021179,2]
[345280546,1734133839973,-500.0,0.00021179,2]
[345280547,1734133839983,-500.0,0.00021179,2]
[345280548,1734133839993,-500.0,0.00021179,2]
[345280549,1734133840002,-604.07,0.00021179,2]
[345280550,1734133840011,-500.0,0.00021179,2]
[345280551,1734133840021,-500.0,0.00021179,2]
[345280552,1734133840031,-637.85,0.00021179,2]
[345280553,1734133840041,-500.0,0.00021179,2]
[345280554,1734133840050,-500.0,0.00021179,2]
[345280555,1734133840059,-500.0,0.00021179,2]
[345280556,1734133840070,-500.0,0.00021179,2]
[345280557,1734133840080,-500.0,0.00021179,2]
[345280558,1734133840089,-500.0,0.00021179,2]
[345280559,1734133840100,-43330.21571597,0.0002118,2]
[345280560,1734133840109,-1000.0,0.00021199,2]
[345280561,1734133840118,-500.0,0.00021199,2]
[345280562,1734133840127,-824.0,0.000212,2]
[345280563,1734133840137,-601.0,0.000212,9]
[345280564,1734133840146,-500000.0,0.000212,2]
[345280565,1734133840155,-500000.0,0.000212,2]
[345280566,1734133840164,-500000.0,0.000212,2]
[345280567,1734133840173,-500000.0,0.000212,2]
[345280568,1734133840183,-184331.09597811,0.000212,2]
[345280569,1734133840192,-5800.0,0.000212,2]
[345280570,1734133840201,-150.0,0.000212,2]
[345280571,1734133840210,-8500.0,0.000212,2]
[345280572,1734133840219,-1500.0,0.00021218,2]
[345280573,1734133840228,-931.0,0.00021233,2]
[345280574,1734133840243,-4190.0,0.00021233,2]
[345280575,1734133840253,-300.121408,0.00021246,9]
[345280576,1734133840262,-300.121408,0.00021246,8]
[345280577,1734133840271,-300.121408,0.00021246,7]
[345280578,1734133840280,-300.121408,0.00021246,6]
[345280579,1734133840289,-300.121408,0.00021246,5]
[345280580,1734133840298,-197.121408,0.00021246,4]
[345280581,1734133840308,-300.121408,0.00021247,2]
[345280582,1734133840317,-300.121408,0.00021247,3]
[345280583,1734133840326,-300.121408,0.00021247,4]
[345280584,1734133840336,-300.121408,0.00021247,5]
[345280585,1734133840345,-300.121408,0.00021247,6]
[345280586,1734133840354,-300.121408,0.00021247,7]
[345280587,1734133840363,-300.121408,0.00021247,8]
[345280588,1734133840373,-300.121408,0.00021247,9]
[345280589,1734133840382,-300.121408,0.00021248,9]
[345280590,1734133840391,-300.121408,0.00021248,8]
[345280591,1734133840401,-300.121408,0.00021248,7]
[345280592,1734133840410,-300.121408,0.00021248,6]
[345280593,1734133840419,-300.121408,0.00021248,5]
[345280594,1734133840428,-300.121408,0.00021248,4]
[345280595,1734133840437,-300.121408,0.00021248,3]
[345280596,1734133840446,-300.121408,0.00021248,2]
[345280597,1734133840455,-1042.08806036,0.00021249,5]
[345280598,1734133840465,-1042.08806036,0.00021249,5]
[345280599,1734133840474,-1042.08806036,0.00021249,5]
[345280600,1734133840487,-1042.08806036,0.00021249,5]
[345280601,1734133840497,-1000.0,0.00021249,2]
[345280602,1734133840507,-284833.99455159,0.00021249,2]
[345280603,1734133840516,-1000.0,0.00021249,2]
[345280604,1734133840526,-158.107522,0.00021249,5]
[345280605,1734133840536,-2905.09646231,0.00021249,20]
[345280606,1734133840545,-395151.06260465,0.0002125,4]
[345280607,1734133840555,-4844.42776359,0.0002125,2]
[345280608,1734133840566,-1974937.01809335,0.0002125,2]
[345280609,1734133840575,-6797069.55963773,0.0002125,2]
[345280610,1734133840589,-17234.67888702,0.0002125,2]
[345280611,1734133840600,-203839.09661162,0.0002125,2]
[345280612,1734133840612,-3579.215,0.0002125,2]
[345280613,1734133840623,-1946170.64255133,0.0002125,2]
[345280614,1734133840641,-16960.52544779,0.0002125,2]
[345280615,1734133840652,-1446.14367545,0.0002125,2]
[345280616,1734133840663,-6836.86997854,0.0002125,2]
[345280617,1734133840979,-1879.42907571,0.0002125,2]
[345280618,1734133840999,-876.49358835,0.0002125,2]
[345280619,1734133841010,-8956.1,0.0002125,2]
[345280620,1734133841021,-2066.501043,0.0002125,2]
[345280621,1734133841048,-186710.76249472,0.0002125,2]
[345280622,1734133841060,-110070.00000062,0.0002125,2]
[345280623,1734133841071,-4895845.36886325,0.0002125,2]
[345280624,1734133841084,-968.43871744,0.0002125,2]
[345280625,1734133841098,-89868.8376,0.0002125,2]
[345280626,1734133841109,-854.04481061,0.0002125,2]
[345280627,1734133841119,-1772.5779999,0.0002125,2]
[345280628,1734133841130,-91182.00000001,0.0002125,2]
[345280629,1734133841141,-4490.25,0.0002125,2]
[345280630,1734133841153,-1110.384,0.0002125,2]
[345280631,1734133841168,-495.44,0.0002125,2]
[345280632,1734133841179,-485.62,0.0002125,2]
[345280633,1734133841190,-6047.4805,0.0002125,2]
[345280634,1734133841201,-648.85999994,0.0002125,2]
[345280635,1734133841211,-262.520001,0.0002125,2]
[345280636,1734133841222,-4473.7,0.0002125,2]
[345280637,1734133841239,-4438.31657033,0.0002125,2]
[345280638,1734133842972,-30579.78,0.0002125,2]
[345280639,1734133842984,-827.97245828,0.0002125,2]
[345280640,1734133842995,-19322.59799999,0.0002125,2]
[345280641,1734133843006,-929.26652671,0.0002125,2]
[345280642,1734133843019,-262.47,0.0002125,2]
[345280643,1734133843030,-351.8508,0.0002125,2]
[345280644,1734133843042,-47760.0,0.0002125,2]
[345280645,1734133843163,-500.0,0.00019975,2]
[345280646,1734133843172,-424094.66721537,0.0002125,2]
[345280647,1734133843184,-922.5000014,0.0002125,2]
[345280648,1734133843237,-70336.86153734,0.0002125,2]
[345280649,1734133843249,-3742.7910999,0.0002125,2]
[345280650,1734133843261,-64506.5312941,0.0002125,2]
[345280651,1734133843272,-12693.4031788,0.0002125,2]
[345280652,1734133843283,-3179.86425706,0.0002125,2]
[345280653,1734133843322,-9157.32,0.0002125,2]
[345280657,1734133845829,-304.98891505,0.00019975,2]
[345280659,1734133845838,-127.02011381,0.00019975,2]
[345280661,1734133845849,-450.75040091,0.00019975,2]
[345280663,1734133845858,-747.0,0.000212,2]
[345280665,1734133845867,-57959.02359909,0.0002125,2]
[345280668,1734133845878,-3173.4500005,0.0002125,2]
[345280670,1734133845891,-236838.65932981,0.0002125,2]
[345280672,1734133845900,-587021.90551508,0.0002125,2]
[345280674,1734133845912,-654.2288281,0.0002125,2]
[345280676,1734133845923,-419.84913676,0.0002125,2]
[345280678,1734133845935,-63797.17787067,0.0002125,2]
[345280679,1734133845945,-3089.9999995,0.0002125,2]
[345280680,1734133845956,-300.0,0.0002125,2]
[345280681,1734133846087,-5234.97259798,0.0002125,2]
[345280682,1734133846098,-1004.90096831,0.0002125,2]
[345280683,1734133846110,-359800.00000016,0.0002125,2]
[345280684,1734133846120,-1308.826537,0.0002125,2]
[345280685,1734133846131,-202744.66885458,0.0002125,2]
[345280687,1734133846142,-1544.97716918,0.0002125,2]
[345280689,1734133846153,-385.54392368,0.0002125,2]
[345280691,1734133846164,-2428.00009,0.0002125,2]
[345280693,1734133846175,-955.2611128,0.0002125,2]
[345281068,1734134303518,314.28,0.00010137,2]